[Event "Arisan Chess Ladies WGM 2019"]
[Site "Modra-Piesok"]
[Date "2019.09.20"]
[Round "9.1"]
[White "Trippold, Denise"]
[Black "Dimitrijevic, Aleksandra"]
[Result "1-0"]
[ECO "A41"]
[WhiteElo "2184"]
[BlackElo "2142"]
[Annotator "NA"]
[PlyCount "61"]
[EventDate "2019.09.14"]
[EventType "tourn"]
[EventCountry "SVK"]
[SourceTitle "playchess.com"]
[Source "ChessBase"]
[SourceQuality "1"]
[TimeControl "40/5400+30:1800+30"]

1. d4 {[%emt 0:00:00]} d6 {[%emt 0:00:00]} 2. Nf3 {[%emt 0:00:00]} Nf6 {[%emt 0:00:20]} 3. g3 {[%emt 0:00:05]} Nbd7 {[%emt 0:01:12]} 4. Bg2 {[%emt 0:01:29]} e5 {[%emt 0:00:49]} 5. b3 {[%emt 0:02:38]} c6 {[%emt 0:01:41]} 6. O-O {[%emt 0:00:28]} Be7 {[%emt 0:01:31]} 7. c4 {[%emt 0:02:06]} O-O {[%emt 0:01:00]} 8. Nc3 {[%emt 0:00:16]} e4 {[%emt 0:05:08]} 9. Ne1 {[%emt 0:11:06]} d5 {[%emt 0:00:07]} 10. cxd5 {[%emt 0:00:03]} cxd5 {[%emt 0:00:05]} 11. f3 {[%emt 0:00:54]} exf3 {[%emt 0:00:47]} 12. Bxf3 {[%emt 0:00:10]} Nb6 {[%emt 0:00:14]} 13. a4 {[%emt 0:00:33]} Be6 {[%emt 0:00:46]} 14. Ng2 {[%emt 0:03:40]} Rc8 {[%emt 0:02:23]} 15. Bb2 {[%emt 0:00:38]} Bh3 {[%emt 0:06:07]} 16. Qd3 {[%emt 0:08:06]} Qd7 {[%emt 0:03:25]} 17. a5 {[%emt 0:09:56]} Na8 {[%emt 0:00:08]} 18. e4 {[%emt 0:00:54]} dxe4 {[%emt 0:06:59]} 19. Nxe4 Nc7 {[%emt 0:00:13]} 20. Nxf6+ {[%emt 0:16:10]} Bxf6 {[%emt 0:00:06]} 21. Bxb7 {[%emt 0:09:55]} Rcd8 {[%emt 0:00:42]} 22. Rxf6 {[%emt 0:08:30]} gxf6 {[%emt 0:03:02]} 23. Ne3 {[%emt 0:01:09]} Rfe8 {[%emt 0:03:01]} 24. d5 {[%emt 0:11:42]} Rxe3 {[%emt 0:04:00]} 25. Qxe3 {[%emt 0:00:10]} Nxd5 {[%emt 0:00:05]} 26. Qxa7 {[%emt 0:02:58]} Nf4 {[%emt 0:04:21]} 27. gxf4 {[%emt 0:02:43]} Qg4+ {[%emt 0:04:38]} 28. Kh1 {[%emt 0:00:01]} Rd7 {[%emt 0:01:00]} 29. Rg1 {[%emt 0:03:41]} Rd1 {[%emt 0:00:07]} 30. Rxd1 {[%emt 0:00:52]} Qxd1+ {[%emt 0:00:05]} 31. Qg1+ {[%emt 0:00:03]} 1-0

[Event "Arisan Chess Ladies WGM 2019"]
[Site "Modra-Piesok"]
[Date "2019.09.20"]
[Round "9.2"]
[White "Kanakova, Natalie"]
[Black "Kantorik, Marian"]
[Result "1/2-1/2"]
[ECO "B00"]
[WhiteElo "2201"]
[BlackElo "2150"]
[Annotator "NA"]
[PlyCount "43"]
[EventDate "2019.09.14"]
[EventType "tourn"]
[EventCountry "SVK"]
[SourceTitle "playchess.com"]
[Source "ChessBase"]
[SourceQuality "1"]
[TimeControl "40/5400+30:1800+30"]

1. e4 {[%emt 0:00:00]} e5 {[%emt 0:05:28]} 2. Nf3 {[%emt 0:00:00]} Nc6 {[%emt 0:00:19]} 3. d4 {[%emt 0:00:04]} exd4 {[%emt 0:00:17]} 4. Nxd4 {[%emt 0:00:35]} Nf6 {[%emt 0:01:19]} 5. Nc3 {[%emt 0:00:56]} Bb4 {[%emt 0:00:49]} 6. Nxc6 {[%emt 0:00:31]} bxc6 {[%emt 0:00:44]} 7. Bd3 {[%emt 0:00:30]} O-O {[%emt 0:05:32]} 8. O-O {[%emt 0:00:44]} d5 {[%emt 0:01:02]} 9. exd5 {[%emt 0:00:45]} cxd5 {[%emt 0:00:07]} 10. Bg5 {[%emt 0:00:58]} Be7 {[%emt 0:02:21]} 11. h3 {[%emt 0:03:07]} c6 {[%emt 0:02:32]} 12. Qf3 {[%emt 0:00:33]} Be6 {[%emt 0:02:19]} 13. Rfe1 {[%emt 0:01:03]} h6 {[%emt 0:03:27]} 14. Bxh6 {[%emt 0:00:59]} gxh6 {[%emt 0:01:22]} 15. Rxe6 {[%emt 0:00:27]} fxe6 {[%emt 0:02:02]} 16. Qg3+ {[%emt 0:00:36]} Kh8 {[%emt 0:00:44]} 17. Qg6 {[%emt 0:00:11]} Qe8 {[%emt 0:01:18]} 18. Qxh6+ {[%emt 0:00:12]} Kg8 {[%emt 0:00:03]} 19. Qg5+ {[%emt 0:00:15]} Kh8 {[%emt 0:00:16]} 20. Qh6+ {[%emt 0:00:06]} Kg8 {[%emt 0:00:33]} 21. Qg5+ {[%emt 0:00:12]} Kh8 {[%emt 0:00:14]} 22. Qh6+ {[%emt 0:00:09]} 1/2-1/2

[Event "Arisan Chess Ladies WGM 2019"]
[Site "Modra-Piesok"]
[Date "2019.09.20"]
[Round "9.3"]
[White "Gvanceladze, Anna"]
[Black "Cibickova, Zuzana"]
[Result "1/2-1/2"]
[ECO "A49"]
[WhiteElo "2247"]
[BlackElo "2244"]
[Annotator "NA"]
[PlyCount "110"]
[EventDate "2019.09.14"]
[EventType "tourn"]
[EventCountry "SVK"]
[SourceTitle "playchess.com"]
[Source "ChessBase"]
[SourceQuality "1"]
[TimeControl "40/5400+30:1800+30"]

1. d4 {[%emt 0:00:00]} Nf6 {[%emt 0:00:00]} 2. Nf3 {[%emt 0:00:00]} g6 {[%emt 0:00:19]} 3. g3 {[%emt 0:00:16]} c5 {[%emt 0:08:36]} 4. d5 {[%emt 0:03:58]} b5 {[%emt 0:01:08]} 5. c4 {[%emt 0:12:00]} bxc4 {[%emt 0:02:06]} 6. Nc3 {[%emt 0:00:06]} d6 {[%emt 0:00:50]} 7. Bg2 {[%emt 0:00:16]} Bg7 {[%emt 0:03:27]} 8. O-O {[%emt 0:00:17]} O-O {[%emt 0:01:12]} 9. Nd2 {[%emt 0:04:23]} Ba6 {[%emt 0:08:46]} 10. Qa4 {[%emt 0:09:59]} Qd7 {[%emt 0:02:10]} 11. Qc2 {[%emt 0:01:56]} Qb7 {[%emt 0:02:46]} 12. Re1 {[%emt 0:08:12]} Nbd7 {[%emt 0:00:30]} 13. h3 {[%emt 0:02:03]} Rab8 {[%emt 0:00:37]} 14. Rb1 {[%emt 0:01:28]} Qa8 {[%emt 0:08:10]} 15. Kh2 {[%emt 0:06:14]} Bb7 {[%emt 0:10:34]} 16. e4 {[%emt 0:00:07]} Ne5 {[%emt 0:00:27]} 17. Nb5 {[%emt 0:01:08]} Ne8 {[%emt 0:01:45]} 18. Re3 {[%emt 0:06:50]} Ba6 {[%emt 0:02:55]} 19. Na3 {[%emt 0:02:19]} Rb4 {[%emt 0:00:17]} 20. Bf1 {[%emt 0:02:17]} e6 {[%emt 0:04:17]} 21. dxe6 {[%emt 0:05:00]} fxe6 {[%emt 0:00:03]} 22. f4 {[%emt 0:00:04]} Nd3 {[%emt 0:01:41]} 23. Naxc4 {[%emt 0:00:33]} Nxc1 {[%emt 0:00:37]} 24. Rxc1 {[%emt 0:00:03]} Qd8 {[%emt 0:11:29]} 25. Bg2 {[%emt 0:01:09]} Nc7 {[%emt 0:11:23]} 26. Rb3 {[%emt 0:03:53]} Rxb3 {[%emt 0:01:35]} 27. Nxb3 {[%emt 0:00:55]} g5 {[%emt 0:02:22]} 28. f5 {[%emt 0:01:59]} exf5 {[%emt 0:01:06]} 29. exf5 {[%emt 0:00:11]} Qf6 {[%emt 0:01:08]} 30. Qd2 {[%emt 0:04:19]} Ne8 {[%emt 0:02:52]} 31. Qd5+ {[%emt 0:01:44]} Kh8 {[%emt 0:00:24]} 32. Nba5 {[%emt 0:10:11]} Qxf5 {[%emt 0:02:10]} 33. Qc6 {[%emt 0:00:14]} Qc8 {[%emt 0:00:29]} 34. Re1 {[%emt 0:00:35]} Bd4 {[%emt 0:03:25]} 35. b3 {[%emt 0:01:06]} Qxc6 {[%emt 0:03:49]} 36. Bxc6 {[%emt 0:00:11]} Rf2+ {[%emt 0:00:22]} 37. Bg2 {[%emt 0:01:22]} Nf6 {[%emt 0:00:33]} 38. Nxd6 {[%emt 0:05:06]} Bc3 {[%emt 0:00:09]} 39. Re6 {[%emt 0:00:42]} Rxa2 {[%emt 0:02:24]} 40. Nf7+ {[%emt 0:01:35]} Kg7 {[%emt 0:00:26]} 41. Rxa6 {[%emt 0:31:47]} Kxf7 {[%emt 0:00:55]} 42. Rxa7+ {[%emt 0:00:00]} Ke6 {[%emt 0:02:00]} 43. Nc6 {[%emt 0:00:00]} Rxa7 {[%emt 0:05:02]} 44. Nxa7 {[%emt 0:00:00]} Be5 {[%emt 0:04:31]} 45. Bf3 {[%emt 0:00:00]} Nd5 {[%emt 0:02:36]} 46. Kg2 {[%emt 0:00:00]} Ne3+ {[%emt 0:04:18]} 47. Kf2 {[%emt 0:00:00]} Nf5 {[%emt 0:01:53]} 48. Bg4 {[%emt 0:00:00]} h5 {[%emt 0:09:51]} 49. Bxh5 {[%emt 0:00:00]} c4 {[%emt 0:00:43]} 50. bxc4 {[%emt 0:00:00]} Bd4+ {[%emt 0:00:05]} 51. Kf3 {[%emt 0:00:00]} Bxa7 {[%emt 0:00:07]} 52. Bg4 {[%emt 0:00:00]} Ke5 {[%emt 0:00:37]} 53. Bxf5 {[%emt 0:00:00]} Kxf5 {[%emt 0:00:06]} 54. g4+ {[%emt 0:00:00]} Ke5 {[%emt 0:00:45]} 55. h4 {[%emt 0:00:00]} gxh4 {[%emt 0:00:10] Ke4+} 1/2-1/2

[Event "Arisan Chess Ladies WGM 2019"]
[Site "Modra-Piesok"]
[Date "2019.09.21"]
[Round "10.1"]
[White "Dimitrijevic, Aleksandra"]
[Black "Gvanceladze, Anna"]
[Result "0-1"]
[ECO "A11"]
[WhiteElo "2142"]
[BlackElo "2247"]
[Annotator "NA"]
[PlyCount "94"]
[EventDate "2019.09.14"]
[EventType "tourn"]
[EventCountry "SVK"]
[SourceTitle "playchess.com"]
[Source "ChessBase"]
[SourceQuality "1"]
[TimeControl "40/5400+30:1800+30"]

1. c4 {[%emt 0:00:00]} c6 {[%emt 0:00:00]} 2. b3 {[%emt 0:01:13]} d5 {[%emt 0:00:00]} 3. Bb2 {[%emt 0:00:35]} Nf6 {[%emt 0:00:00]} 4. e3 {[%emt 0:00:07]} Bf5 {[%emt 0:02:12]} 5. Nf3 {[%emt 0:00:48]} h6 {[%emt 0:01:24]} 6. Be2 {[%emt 0:00:06]} e6 {[%emt 0:00:06]} 7. O-O {[%emt 0:00:10]} Nbd7 {[%emt 0:00:26] A12: English Opening: 1...c6 with b3 by White} 8. d3 {[%emt 0:02:13]} (8. Nc3 Be7 9. d4 O-O 10. a3 a5 11. c5 Ne4 12. b4 b5 13. Nd2 Nxd2 14. Qxd2 Qc7 15. f4 Nf6 16. Bf3 axb4 17. axb4 Rxa1 18. Rxa1 {½-½ (31) Vachier Lagrave,M (2780)-Dreev,A (2649) chess.com INT 2018}) 8... Be7 {[%emt 0:00:09]} 9. a3 {[%emt 0:00:14]} O-O {[%emt 0:00:09]} 10. Nc3 {[%emt 0:00:14]} Rc8 $146 {[%emt 0:03:34]} ({Predecessor:} 10... a5 11. Rc1 Bh7 12. d4 {½-½ (35) Maghsoodloo,P (2421)-Darini,P (2470) Mashhad 2015}) 11. Qc2 {[%emt 0:03:49]} Qc7 {[%emt 0:01:20]} 12. Rac1 {[%emt 0:00:18]} Qb8 {[%emt 0:00:08]} 13. Rfd1 {[%emt 0:00:52]} Bh7 {[%emt 0:05:39]} 14. cxd5 {[%emt 0:02:58]} exd5 {[%emt 0:08:00]} 15. b4 {[%emt 0:02:22]} Rfe8 {[%emt 0:05:21]} 16. Qb3 {[%emt 0:01:55]} Qd6 {[%emt 0:01:55]} 17. d4 {[%emt 0:02:42]} (17. Na4 $11) 17... b5 $1 {[%emt 0:04:01]} 18. Ne5 {[%emt 0:01:52]} Nb6 {[%emt 0:03:17]} 19. Nb1 {[%emt 0:05:24]} Nc4 {[%emt 0:01:46]} 20. Nd2 {[%emt 0:00:06]} a5 {[%emt 0:07:36]} (20... a6 {[%emt 0:07:36]}) 21. Bc3 {[%emt 0:00:28]} Rc7 {[%emt 0:05:50]} 22. Nd3 {[%emt 0:09:59]} Ra8 {[%emt 0:05:23]} 23. Nc5 {[%emt 0:00:25]} Rca7 {[%emt 0:01:58]} 24. Ra1 {[%emt 0:03:51]} Bf5 {[%emt 0:03:02]} 25. Nf1 {[%emt 0:04:25]} Ne4 {[%emt 0:07:53]} 26. Be1 {[%emt 0:00:10]} axb4 {[%emt 0:04:04]} 27. Bxb4 {[%emt 0:00:07]} Qg6 {[%emt 0:00:57]} 28. Ra2 {[%emt 0:03:17]} h5 {[%emt 0:03:50]} 29. f3 {[%emt 0:00:19]} Nxc5 {[%emt 0:01:58]} 30. dxc5 {[%emt 0:00:09]} Be6 {[%emt 0:01:46]} 31. Bd3 {[%emt 0:00:30]} f5 {[%emt 0:00:20]} 32. Bb1 {[%emt 0:00:46]} Qf7 {[%emt 0:02:07]} 33. Qc3 $19 {[%emt 0:01:24]} Qf8 {[%emt 0:01:08]} 34. Qd4 {[%emt 0:01:57]} Bf6 {[%emt 0:01:29]} 35. Qf4 {[%emt 0:00:09]} Be5 {[%emt 0:02:32]} 36. Qh4 {[%emt 0:01:02]} Nxa3 {[%emt 0:00:47]} 37. Qxh5 {[%emt 0:00:14]} Nxb1 {[%emt 0:00:40]} 38. Rxa7 {[%emt 0:00:05]} Rxa7 {[%emt 0:00:03]} 39. Rxb1 {[%emt 0:00:08]} Bf6 {[%emt 0:01:23]} 40. Qg6 {[%emt 0:01:21]} Qf7 {[%emt 0:01:55]} 41. Qg3 {[%emt 0:30:08]} Ra4 {[%emt 0:30:17]} 42. Qe1 {[%emt 0:04:49]} Ra2 {[%emt 0:03:13]} 43. Ng3 {[%emt 0:00:21]} Bh4 {[%emt 0:05:29]} 44. Ra1 {[%emt 0:00:17]} d4 {[%emt 0:01:40]} 45. Rxa2 {[%emt 0:00:46]} Bxa2 {[%emt 0:00:02]} 46. exd4 {[%emt 0:00:09]} f4 {[%emt 0:00:45]} 47. Qe4 {[%emt 0:02:22]} Bd5 {[%emt 0:00:06]} 0-1

[Event "Arisan Chess Ladies WGM 2019"]
[Site "Modra-Piesok"]
[Date "2019.09.21"]
[Round "10.3"]
[White "Kantorik, Marian"]
[Black "Trippold, Denise"]
[Result "1-0"]
[ECO "A14"]
[WhiteElo "2150"]
[BlackElo "2184"]
[Annotator "NA"]
[PlyCount "143"]
[EventDate "2019.09.14"]
[EventType "tourn"]
[EventCountry "SVK"]
[SourceTitle "playchess.com"]
[Source "ChessBase"]
[SourceQuality "1"]
[TimeControl "40/5400+30:1800+30"]

1. Nf3 {[%emt 0:00:00]} d5 {[%emt 0:00:00]} 2. c4 {[%emt 0:00:00]} e6 {[%emt 0:00:00]} 3. g3 {[%emt 0:00:50]} Nf6 {[%emt 0:00:04]} 4. Bg2 {[%emt 0:00:13]} Be7 {[%emt 0:01:05]} 5. O-O {[%emt 0:00:14]} O-O {[%emt 0:00:04]} 6. d4 {[%emt 0:01:18]} dxc4 {[%emt 0:00:42]} 7. Na3 {[%emt 0:00:07]} Bxa3 {[%emt 0:20:00]} 8. bxa3 {[%emt 0:00:40]} b5 {[%emt 0:01:12]} 9. a4 {[%emt 0:03:40] E05: Open Catalan: 5 Nf3 Be7} a6 {[%emt 0:02:49]} 10. Ne5 {[%emt 0:02:23]} (10. Rb1 c6 11. Qc2 Nbd7 12. e4 Re8 13. Rd1 h6 14. Ba3 Qa5 15. Ne5 Qc7 16. Qb2 c5 17. Nxd7 Bxd7 18. Bxc5 {½-½ (37) Ivanisevic,I (2648)-Tadic,B (2545) Belgrade 2014}) 10... Nd5 {[%emt 0:00:22]} 11. Qc2 $146 {[%emt 0:03:31]} ({Predecessor:} 11. Ba3 Re8 12. e4 Nf6 13. Nxf7 Kxf7 14. e5 Nd5 15. Qh5+ Kg8 16. Be4 g6 17. Bxg6 hxg6 18. Qxg6+ {½-½ (26) Borhy,M (2195)-Leisenberger,H (2105) Austria 2018}) 11... Bb7 {[%emt 0:01:45]} 12. Ba3 {[%emt 0:08:10]} Re8 {[%emt 0:10:11]} 13. Rab1 {[%emt 0:12:32]} c6 {[%emt 0:09:16]} 14. Nxc4 {[%emt 0:02:32]} Qc7 {[%emt 0:01:37]} 15. Nd6 {[%emt 0:04:44]} Rd8 {[%emt 0:00:03]} 16. Nxb7 {[%emt 0:01:46]} Qxb7 {[%emt 0:00:05]} 17. Rfc1 {[%emt 0:02:05]} Qd7 {[%emt 0:01:53]} 18. Bc5 {[%emt 0:02:42]} Qe8 {[%emt 0:08:17]} 19. a5 {[%emt 0:03:28]} Rc8 {[%emt 0:00:54]} 20. e4 {[%emt 0:04:00]} Ne7 {[%emt 0:01:10]} 21. Rb3 {[%emt 0:01:47]} Nd7 {[%emt 0:02:25]} 22. Bd6 {[%emt 0:01:21]} Ra7 $16 {[%emt 0:05:21]} 23. Rc3 {[%emt 0:01:51]} Nb8 {[%emt 0:01:57]} 24. d5 {[%emt 0:06:31]} Qd8 {[%emt 0:07:43]} 25. Bc5 {[%emt 0:04:53]} Rd7 {[%emt 0:04:12]} 26. Bb6 {[%emt 0:05:11]} Qe8 {[%emt 0:00:02]} 27. Bh3 {[%emt 0:02:35]} exd5 {[%emt 0:01:52]} 28. Bxd7 {[%emt 0:01:06]} Qxd7 {[%emt 0:00:45]} 29. Re3 {[%emt 0:05:05]} d4 {[%emt 0:11:21]} 30. Rd3 {[%emt 0:00:46]} c5 {[%emt 0:00:25]} 31. Bxc5 {[%emt 0:01:00]} Nbc6 {[%emt 0:01:06]} 32. Bxe7 {[%emt 0:02:57]} Nxe7 {[%emt 0:00:01]} 33. Qd2 {[%emt 0:00:16]} Rd8 {[%emt 0:00:31]} 34. Rc5 {[%emt 0:05:20]} h6 {[%emt 0:00:55]} 35. Kg2 {[%emt 0:01:44]} Qd6 {[%emt 0:00:59]} 36. Qc2 {[%emt 0:00:39]} Qe6 {[%emt 0:01:02]} 37. f3 {[%emt 0:00:49]} Rd7 {[%emt 0:02:30]} 38. a4 {[%emt 0:02:25]} bxa4 {[%emt 0:00:45]} 39. Qxa4 {[%emt 0:00:13]} Qd6 {[%emt 0:02:02]} 40. Rc4 {[%emt 0:02:24]} Rb7 {[%emt 0:00:45]} 41. Rc2 {[%emt 0:32:13]} Rd7 {[%emt 0:31:38]} 42. Qc4 {[%emt 0:02:21]} Ng6 {[%emt 0:00:00]} 43. Qc5 {[%emt 0:00:00]} Qf6 {[%emt 0:00:00]} 44. Qc8+ {[%emt 0:00:00]} Rd8 {[%emt 0:00:00]} 45. Qf5 {[%emt 0:00:00]} Qxf5 {[%emt 0:00:00]} 46. exf5 {[%emt 0:00:00]} Ne7 47. Rc5 {[%emt 0:00:00]} g6 {[%emt 0:00:00]} 48. fxg6 {[%emt 0:00:00]} fxg6 {[%emt 0:00:00]} 49. Kf2 {[%emt 0:00:00]} Kf7 {[%emt 0:00:00]} 50. Ke2 {[%emt 0:00:00]} h5 {[%emt 0:00:00]} 51. Rb3 {[%emt 0:00:00]} Rd7 {[%emt 0:00:00]} 52. Kd2 {[%emt 0:00:00]} Nf5 {[%emt 0:00:00]} 53. Rb6 {[%emt 0:00:00]} d3 {[%emt 0:00:48]} 54. Rxf5+ {[%emt 0:00:00]} gxf5 {[%emt 0:00:05]} 55. Rxa6 {[%emt 0:00:00]} Rd5 {[%emt 0:02:37]} 56. f4 {[%emt 0:00:00]} Rb5 {[%emt 0:02:05]} 57. Kxd3 {[%emt 0:00:00]} Rb2 {[%emt 0:00:06]} 58. Rb6 {[%emt 0:01:48]} Rxh2 {[%emt 0:00:06]} 59. Kd4 {[%emt 0:00:14]} Ra2 {[%emt 0:03:17]} 60. a6 {[%emt 0:00:13]} Ra5 {[%emt 0:00:36]} 61. Kc4 {[%emt 0:01:16]} h4 {[%emt 0:00:29]} 62. gxh4 {[%emt 0:00:33]} Kg7 {[%emt 0:00:14]} 63. Kb4 {[%emt 0:00:27]} Ra1 {[%emt 0:00:02]} 64. Kb5 {[%emt 0:00:31]} Ra2 {[%emt 0:00:23]} 65. Kc6 {[%emt 0:01:18]} Kh6 {[%emt 0:00:01]} 66. Kb7+ {[%emt 0:00:25]} Kh5 {[%emt 0:00:11]} 67. a7 {[%emt 0:00:24]} Kxh4 {[%emt 0:01:18]} 68. Ra6 {[%emt 0:00:17]} Rb2+ {[%emt 0:00:06]} 69. Kc7 {[%emt 0:00:31]} Rc2+ {[%emt 0:00:04]} 70. Kd7 {[%emt 0:00:20]} Rd2+ {[%emt 0:00:02]} 71. Ke7 {[%emt 0:00:21]} Re2+ {[%emt 0:00:04]} 72. Kf7 {[%emt 0:00:24]} 1-0